[Event "Titled Tuesday Blitz March 08 Early 2022"]
[White "Sychev, Klementy"]
[Black "Demin, Vladimir"]
[WhiteFideId "4114060"]
[BlackFideId "4167457"]
[WhiteElo "2564"]
[BlackElo "2518"]
[Result "1-0"]
[Round "08"]
[TimeControl "180+1"]
[Date "2022.03.09"]
[WhiteClock "0:00:44"]
[BlackClock "0:00:03"]

1. e4 {[%clk 0:02:59]}  Nf6 {[%clk 0:02:59]} 2. e5 {[%clk 0:02:58]}  Nd5 {[%clk 0:02:59]} 3. c4 {[%clk 0:02:58]}  Nb6 {[%clk 0:02:58]} 4. a4 {[%clk 0:02:59]}  a5 {[%clk 0:02:58]} 5. Ra3 {[%clk 0:02:58]}  d6 {[%clk 0:02:55]} 6. exd6 {[%clk 0:02:33]}  cxd6 {[%clk 0:02:55]} 7. Rg3 {[%clk 0:02:28]}  g6 {[%clk 0:02:54]} 8. h4 {[%clk 0:02:28]}  h5 {[%clk 0:02:37]} 9. Bd3 {[%clk 0:02:26]}  N8d7 {[%clk 0:02:33]} 10. Nf3 {[%clk 0:02:17]}  Nc5 {[%clk 0:02:25]} 11. Bc2 {[%clk 0:02:13]}  Bg4 {[%clk 0:02:25]} 12. d4 {[%clk 0:02:12]}  Ne6 {[%clk 0:02:20]} 13. d5 {[%clk 0:02:12]}  Nc5 {[%clk 0:02:20]} 14. Qd4 {[%clk 0:02:12]}  Rg8 {[%clk 0:02:13]} 15. Ng5 {[%clk 0:02:10]}  e5 {[%clk 0:01:43]} 16. dxe6 {[%clk 0:02:00]}  Nxe6 {[%clk 0:01:43]} 17. Nxe6 {[%clk 0:01:58]}  Bxe6 {[%clk 0:01:44]} 18. Bg5 {[%clk 0:01:53]}  Bg7 {[%clk 0:01:23]} 19. Qe4 {[%clk 0:01:29]}  Qc7 {[%clk 0:01:18]} 20. O-O {[%clk 0:01:27]}  Nxc4 {[%clk 0:01:03]} 21. Nc3 {[%clk 0:01:25]}  Qc6 {[%clk 0:00:58]} 22. Qe2 {[%clk 0:01:18]}  Nxb2 {[%clk 0:00:32]} 23. Bxg6 {[%clk 0:00:54]}  Be5 {[%clk 0:00:23]} 24. Be4 {[%clk 0:00:51]}  Qb6 {[%clk 0:00:17]} 25. Nd5 {[%clk 0:00:49]}  Bxd5 {[%clk 0:00:13]} 26. Bxd5 {[%clk 0:00:49]}  Kd7 {[%clk 0:00:08]} 27. Rb3 {[%clk 0:00:49]}  Qd4 {[%clk 0:00:03]} 28. Qb5+ {[%clk 0:00:44]} 1-0


[Site "https://www.chess.com"]

[Event "Titled Tuesday Blitz March 08 Early 2022"]
[White "Tarhan, Adar"]
[Black "Kosakowski, Jakub"]
[WhiteFideId "34544712"]
[BlackFideId "1185080"]
[WhiteElo "1802"]
[BlackElo "2476"]
[Result "1-0"]
[Round "08"]
[TimeControl "180+1"]
[Date "2022.03.08"]
[WhiteClock "0:01:19"]
[BlackClock "0:00:23"]

1. e4 {[%clk 0:03:00]}  e5 {[%clk 0:02:49]} 2. Nf3 {[%clk 0:02:59]}  Nc6 {[%clk 0:02:46]} 3. Ng1 {[%clk 0:02:59]}  Nb8 {[%clk 0:02:44]} 4. Nf3 {[%clk 0:02:58]}  Nc6 {[%clk 0:02:44]} 5. Bc4 {[%clk 0:02:57]}  Nf6 {[%clk 0:02:42]} 6. d3 {[%clk 0:02:54]}  h6 {[%clk 0:02:41]} 7. c3 {[%clk 0:02:53]}  d6 {[%clk 0:02:41]} 8. Nbd2 {[%clk 0:02:52]}  g5 {[%clk 0:02:41]} 9. h3 {[%clk 0:02:50]}  Bg7 {[%clk 0:02:42]} 10. g4 {[%clk 0:02:48]}  Ne7 {[%clk 0:02:39]} 11. Nf1 {[%clk 0:02:47]}  c6 {[%clk 0:02:38]} 12. Bb3 {[%clk 0:02:47]}  Ng6 {[%clk 0:02:34]} 13. Ng3 {[%clk 0:02:46]}  d5 {[%clk 0:02:14]} 14. Qe2 {[%clk 0:02:37]}  O-O {[%clk 0:02:00]} 15. Nf5 {[%clk 0:02:34]}  Be6 {[%clk 0:01:58]} 16. h4 {[%clk 0:02:30]}  dxe4 {[%clk 0:01:31]} 17. dxe4 {[%clk 0:02:31]}  Nxg4 {[%clk 0:01:18]} 18. hxg5 {[%clk 0:02:28]}  Bxf5 {[%clk 0:01:17]} 19. exf5 {[%clk 0:02:28]}  Nf4 {[%clk 0:01:17]} 20. Bxf4 {[%clk 0:02:27]}  exf4 {[%clk 0:01:17]} 21. g6 {[%clk 0:02:27]}  Qd7 {[%clk 0:01:07]} 22. Nh4 {[%clk 0:02:23]}  Rae8 {[%clk 0:01:03]} 23. gxf7+ {[%clk 0:02:23]}  Rxf7 {[%clk 0:01:03]} 24. Be6 {[%clk 0:02:24]}  f3 {[%clk 0:00:46]} 25. Nxf3 {[%clk 0:02:12]}  Qd6 {[%clk 0:00:39]} 26. Rd1 {[%clk 0:02:04]}  Qf4 {[%clk 0:00:36]} 27. Kf1 {[%clk 0:01:42]}  Kh8 {[%clk 0:00:30]} 28. Rh4 {[%clk 0:01:22]}  Rxf5 {[%clk 0:00:24]} 29. Bxf5 {[%clk 0:01:19]}  Rxe2 {[%clk 0:00:23]} 30. Rd8+ {[%clk 0:01:19]}  Bf8 {[%clk 0:00:23]} 31. Rxf8+ {[%clk 0:01:18]}  Kg7 {[%clk 0:00:23]} 32. Rxg4+ {[%clk 0:01:19]} 1-0


[Site "https://www.chess.com"]

[Event "Titled Tuesday Blitz March 08 Early 2022"]
[White "Vifleemskaia, Svetlana"]
[Black "Gulecyuz, Deniz"]
[WhiteFideId "4129490"]
[BlackFideId "30921341"]
[WhiteElo "1901"]
[BlackElo "1923"]
[Result "1-0"]
[Round "08"]
[TimeControl "180+1"]
[Date "2022.03.09"]
[WhiteClock "0:00:04"]
[BlackClock "0:00:01"]

1. d4 {[%clk 0:03:00]}  Nf6 {[%clk 0:03:00]} 2. c4 {[%clk 0:02:58]}  g6 {[%clk 0:02:58]} 3. Nc3 {[%clk 0:02:59]}  d5 {[%clk 0:02:58]} 4. cxd5 {[%clk 0:02:58]}  Nxd5 {[%clk 0:02:59]} 5. Bd2 {[%clk 0:02:59]}  Bg7 {[%clk 0:02:59]} 6. e4 {[%clk 0:02:59]}  Nxc3 {[%clk 0:02:59]} 7. Bxc3 {[%clk 0:02:59]}  O-O {[%clk 0:02:58]} 8. Qd2 {[%clk 0:02:58]}  c5 {[%clk 0:02:55]} 9. d5 {[%clk 0:02:57]}  e6 {[%clk 0:02:52]} 10. Bc4 {[%clk 0:02:56]}  b5 {[%clk 0:02:34]} 11. Bxg7 {[%clk 0:02:50]}  Kxg7 {[%clk 0:02:35]} 12. Bxb5 {[%clk 0:02:45]}  exd5 {[%clk 0:02:34]} 13. exd5 {[%clk 0:02:36]}  Qb6 {[%clk 0:01:49]} 14. Bc4 {[%clk 0:02:17]}  Re8+ {[%clk 0:01:44]} 15. Ne2 {[%clk 0:02:17]}  Ba6 {[%clk 0:01:39]} 16. O-O {[%clk 0:02:12]}  Bxc4 {[%clk 0:01:39]} 17. Qc3+ {[%clk 0:02:11]}  Kg8 {[%clk 0:01:39]} 18. Qxc4 {[%clk 0:02:11]}  Qxb2 {[%clk 0:01:30]} 19. Nc3 {[%clk 0:02:08]}  Nd7 {[%clk 0:01:28]} 20. Rab1 {[%clk 0:02:03]}  Qc2 {[%clk 0:01:11]} 21. Rfc1 {[%clk 0:02:00]}  Qf5 {[%clk 0:01:09]} 22. h3 {[%clk 0:01:49]}  Rad8 {[%clk 0:01:09]} 23. Rb7 {[%clk 0:01:44]}  Ne5 {[%clk 0:01:05]} 24. Qe4 {[%clk 0:01:28]}  Qg5 {[%clk 0:00:28]} 25. f4 {[%clk 0:01:20]}  Qh6 {[%clk 0:00:23]} 26. Rf1 {[%clk 0:01:07]}  Ng4 {[%clk 0:00:22]} 27. Re7 {[%clk 0:00:57]}  Qf8 {[%clk 0:00:17]} 28. d6 {[%clk 0:00:51]}  Nf6 {[%clk 0:00:16]} 29. Qe5 {[%clk 0:00:40]}  Rxd6 {[%clk 0:00:16]} 30. Rxe8 {[%clk 0:00:31]}  Nxe8 {[%clk 0:00:17]} 31. Qxc5 {[%clk 0:00:29]}  Ra6 {[%clk 0:00:14]} 32. Qd4 {[%clk 0:00:24]}  Qd6 {[%clk 0:00:13]} 33. Qxd6 {[%clk 0:00:19]}  Nxd6 {[%clk 0:00:12]} 34. Rb1 {[%clk 0:00:18]}  Kg7 {[%clk 0:00:12]} 35. Kf2 {[%clk 0:00:17]}  Nf5 {[%clk 0:00:10]} 36. g4 {[%clk 0:00:16]}  Nd4 {[%clk 0:00:11]} 37. Ke3 {[%clk 0:00:15]}  Nc2+ {[%clk 0:00:10]} 38. Kd3 {[%clk 0:00:13]}  Na3 {[%clk 0:00:10]} 39. Rb3 {[%clk 0:00:12]}  Ra5 {[%clk 0:00:09]} 40. Kd2 {[%clk 0:00:08]}  a6 {[%clk 0:00:10]} 41. Ne4 {[%clk 0:00:06]}  Nb5 {[%clk 0:00:10]} 42. a3 {[%clk 0:00:05]}  Ra4 {[%clk 0:00:10]} 43. Nc5 {[%clk 0:00:03]}  Rxf4 {[%clk 0:00:08]} 44. Nxa6 {[%clk 0:00:03]}  Rf2+ {[%clk 0:00:08]} 45. Ke3 {[%clk 0:00:03]}  Rh2 {[%clk 0:00:08]} 46. Rxb5 {[%clk 0:00:03]}  Rxh3+ {[%clk 0:00:08]} 47. Kf4 {[%clk 0:00:04]}  Rxa3 {[%clk 0:00:09]} 48. Nc5 {[%clk 0:00:03]}  h6 {[%clk 0:00:08]} 49. Nd7 {[%clk 0:00:02]}  Ra4+ {[%clk 0:00:07]} 50. Kf3 {[%clk 0:00:02]}  h5 {[%clk 0:00:06]} 51. gxh5 {[%clk 0:00:02]}  gxh5 {[%clk 0:00:07]} 52. Ne5 {[%clk 0:00:02]}  f6 {[%clk 0:00:06]} 53. Nd3 {[%clk 0:00:02]}  Kg6 {[%clk 0:00:06]} 54. Nf4+ {[%clk 0:00:03]}  Kg7 {[%clk 0:00:06]} 55. Ng2 {[%clk 0:00:03]}  Kg6 {[%clk 0:00:05]} 56. Kg3 {[%clk 0:00:04]}  Ra3+ {[%clk 0:00:05]} 57. Kf2 {[%clk 0:00:04]}  f5 {[%clk 0:00:04]} 58. Nf4+ {[%clk 0:00:04]}  Kg5 {[%clk 0:00:04]} 59. Ne6+ {[%clk 0:00:04]}  Kg4 {[%clk 0:00:04]} 60. Rb4+ {[%clk 0:00:05]}  Kh3 {[%clk 0:00:03]} 61. Nf4+ {[%clk 0:00:04]}  Kh2 {[%clk 0:00:03]} 62. Nxh5 {[%clk 0:00:04]}  Ra2+ {[%clk 0:00:04]} 63. Kf3 {[%clk 0:00:04]}  Ra3+ {[%clk 0:00:04]} 64. Kf4 {[%clk 0:00:04]}  Kg2 {[%clk 0:00:02]} 65. Ng7 {[%clk 0:00:04]}  Rf3+ {[%clk 0:00:02]} 66. Ke5 {[%clk 0:00:04]}  Re3+ {[%clk 0:00:02]} 67. Kxf5 {[%clk 0:00:04]}  Rf3+ {[%clk 0:00:03]} 68. Kg6 {[%clk 0:00:04]}  Rg3+ {[%clk 0:00:04]} 69. Kf6 {[%clk 0:00:04]}  Rf3+ {[%clk 0:00:04]} 70. Nf5 {[%clk 0:00:05]}  Kf2 {[%clk 0:00:04]} 71. Rb2+ {[%clk 0:00:05]}  Kf1 {[%clk 0:00:02]} 72. Ke5 {[%clk 0:00:05]}  Ke1 {[%clk 0:00:01]} 73. Ke4 {[%clk 0:00:05]}  Ra3 {[%clk 0:00:02]} 74. Nd4 {[%clk 0:00:03]}  Ra8 {[%clk 0:00:02]} 75. Kd3 {[%clk 0:00:02]}  Ra3+ {[%clk 0:00:01]} 76. Nb3 {[%clk 0:00:01]}  Ra8 {[%clk 0:00:01]} 77. Nd4 {[%clk 0:00:01]}  Ra3+ {[%clk 0:00:01]} 78. Ke4 {[%clk 0:00:02]}  Ra8 {[%clk 0:00:02]} 79. Rb1+ {[%clk 0:00:02]}  Kd2 {[%clk 0:00:01]} 80. Rb2+ {[%clk 0:00:03]}  Kc3 {[%clk 0:00:02]} 81. Rb3+ {[%clk 0:00:03]}  Kd2 {[%clk 0:00:02]} 82. Rf3 {[%clk 0:00:04]}  Re8+ {[%clk 0:00:02]} 83. Kf4 {[%clk 0:00:04]}  Rf8+ {[%clk 0:00:02]} 84. Nf5 {[%clk 0:00:05]}  Ke2 {[%clk 0:00:01]} 85. Re3+ {[%clk 0:00:04]}  Kd2 {[%clk 0:00:02]} 86. Ra3 {[%clk 0:00:05]}  Ke2 {[%clk 0:00:01]} 87. Ke5 {[%clk 0:00:04]} 1-0


[Site "https://www.chess.com"]

[Event "Titled Tuesday Blitz March 08 Early 2022"]
[White "Vogel, Roven"]
[Black "Tologon tegin, Semetei"]
[WhiteFideId "12908088"]
[BlackFideId "13800574"]
[WhiteElo "2516"]
[BlackElo "2258"]
[Result "1/2-1/2"]
[Round "08"]
[TimeControl "180+1"]
[Date "2022.03.09"]
[WhiteClock "0:00:02"]
[BlackClock "0:00:10"]

1. e4 {[%clk 0:02:53]}  e5 {[%clk 0:02:59]} 2. Nf3 {[%clk 0:02:52]}  Nc6 {[%clk 0:02:59]} 3. Bc4 {[%clk 0:02:52]}  Bc5 {[%clk 0:02:58]} 4. O-O {[%clk 0:02:51]}  Nf6 {[%clk 0:02:58]} 5. d3 {[%clk 0:02:51]}  O-O {[%clk 0:02:58]} 6. c3 {[%clk 0:02:46]}  d5 {[%clk 0:02:55]} 7. exd5 {[%clk 0:02:44]}  Nxd5 {[%clk 0:02:54]} 8. Re1 {[%clk 0:02:43]}  Bg4 {[%clk 0:02:51]} 9. h3 {[%clk 0:02:42]}  Bh5 {[%clk 0:02:51]} 10. Nbd2 {[%clk 0:02:35]}  Re8 {[%clk 0:02:49]} 11. Ne4 {[%clk 0:02:34]}  Bb6 {[%clk 0:02:46]} 12. Ng3 {[%clk 0:02:33]}  Bg6 {[%clk 0:02:44]} 13. Bg5 {[%clk 0:02:32]}  f6 {[%clk 0:02:41]} 14. Bc1 {[%clk 0:02:30]}  Kh8 {[%clk 0:02:40]} 15. Nh4 {[%clk 0:02:28]}  Bf7 {[%clk 0:02:40]} 16. Qg4 {[%clk 0:02:23]}  Be6 {[%clk 0:02:37]} 17. Qh5 {[%clk 0:02:22]}  Qd7 {[%clk 0:02:33]} 18. Bd2 {[%clk 0:02:07]}  Rad8 {[%clk 0:02:32]} 19. Rad1 {[%clk 0:02:06]}  Kg8 {[%clk 0:02:26]} 20. a3 {[%clk 0:02:02]}  Nf4 {[%clk 0:02:16]} 21. Bxf4 {[%clk 0:02:02]}  exf4 {[%clk 0:02:15]} 22. Rxe6 {[%clk 0:02:00]}  Rxe6 {[%clk 0:02:14]} 23. Re1 {[%clk 0:01:57]}  Re8 {[%clk 0:02:06]} 24. Qxe8+ {[%clk 0:01:55]}  Qxe8 {[%clk 0:02:06]} 25. Rxe6 {[%clk 0:01:55]}  Qxe6 {[%clk 0:01:36]} 26. Bxe6+ {[%clk 0:01:47]}  Kf8 {[%clk 0:01:37]} 27. Ne4 {[%clk 0:01:46]}  g6 {[%clk 0:01:34]} 28. Nf3 {[%clk 0:01:46]}  Ke7 {[%clk 0:01:33]} 29. Bg8 {[%clk 0:01:45]}  h6 {[%clk 0:01:32]} 30. d4 {[%clk 0:01:44]}  f5 {[%clk 0:01:28]} 31. Ned2 {[%clk 0:01:44]}  g5 {[%clk 0:01:24]} 32. Ne1 {[%clk 0:01:42]}  Kf6 {[%clk 0:01:23]} 33. Nd3 {[%clk 0:01:42]}  Ne7 {[%clk 0:01:22]} 34. Ba2 {[%clk 0:01:41]}  c6 {[%clk 0:01:22]} 35. Nc4 {[%clk 0:01:41]}  Bc7 {[%clk 0:01:21]} 36. Nce5 {[%clk 0:01:38]}  b6 {[%clk 0:01:11]} 37. g4 {[%clk 0:01:31]}  fxg3 {[%clk 0:01:10]} 38. fxg3 {[%clk 0:01:32]}  h5 {[%clk 0:01:10]} 39. Kf2 {[%clk 0:01:31]}  c5 {[%clk 0:01:05]} 40. Kf3 {[%clk 0:01:28]}  cxd4 {[%clk 0:01:04]} 41. cxd4 {[%clk 0:01:29]}  g4+ {[%clk 0:00:54]} 42. hxg4 {[%clk 0:01:28]}  fxg4+ {[%clk 0:00:54]} 43. Ke3 {[%clk 0:01:29]}  Nf5+ {[%clk 0:00:53]} 44. Kf2 {[%clk 0:01:23]}  Nxd4 {[%clk 0:00:52]} 45. Nd7+ {[%clk 0:01:20]}  Kg5 {[%clk 0:00:52]} 46. Nf8 {[%clk 0:01:13]}  h4 {[%clk 0:00:49]} 47. gxh4+ {[%clk 0:01:11]}  Kxh4 {[%clk 0:00:50]} 48. Ne6 {[%clk 0:01:08]}  Nxe6 {[%clk 0:00:43]} 49. Bxe6 {[%clk 0:01:07]}  Bd8 {[%clk 0:00:42]} 50. Kg2 {[%clk 0:01:05]}  Bf6 {[%clk 0:00:41]} 51. b3 {[%clk 0:01:00]}  Bd4 {[%clk 0:00:36]} 52. a4 {[%clk 0:00:59]}  Kg5 {[%clk 0:00:32]} 53. Nb4 {[%clk 0:00:58]}  a5 {[%clk 0:00:28]} 54. Nc6 {[%clk 0:00:58]}  Bc5 {[%clk 0:00:29]} 55. Bd7 {[%clk 0:00:56]}  Kf4 {[%clk 0:00:28]} 56. Nd8 {[%clk 0:00:51]}  Be3 {[%clk 0:00:22]} 57. Nf7 {[%clk 0:00:47]}  g3 {[%clk 0:00:21]} 58. Nd6 {[%clk 0:00:43]}  Bf2 {[%clk 0:00:20]} 59. Nf5 {[%clk 0:00:40]}  Be1 {[%clk 0:00:20]} 60. Nd4 {[%clk 0:00:38]}  Ke4 {[%clk 0:00:15]} 61. Ne2 {[%clk 0:00:37]}  Kd3 {[%clk 0:00:15]} 62. Nxg3 {[%clk 0:00:36]}  Kc3 {[%clk 0:00:15]} 63. Be6 {[%clk 0:00:36]}  Kb4 {[%clk 0:00:14]} 64. Ne4 {[%clk 0:00:31]}  b5 {[%clk 0:00:13]} 65. axb5 {[%clk 0:00:30]}  Kxb5 {[%clk 0:00:13]} 66. Bd7+ {[%clk 0:00:30]}  Kb4 {[%clk 0:00:13]} 67. Ba4 {[%clk 0:00:31]}  Bh4 {[%clk 0:00:12]} 68. Kf3 {[%clk 0:00:30]}  Be7 {[%clk 0:00:13]} 69. Kg4 {[%clk 0:00:30]}  Bf8 {[%clk 0:00:13]} 70. Kf5 {[%clk 0:00:31]}  Be7 {[%clk 0:00:13]} 71. Ke6 {[%clk 0:00:31]}  Bh4 {[%clk 0:00:14]} 72. Kd5 {[%clk 0:00:31]}  Be1 {[%clk 0:00:15]} 73. Kc6 {[%clk 0:00:29]}  Bh4 {[%clk 0:00:15]} 74. Kb6 {[%clk 0:00:29]}  Be7 {[%clk 0:00:16]} 75. Ka6 {[%clk 0:00:29]}  Bd8 {[%clk 0:00:16]} 76. Ng3 {[%clk 0:00:26]}  Bc7 {[%clk 0:00:16]} 77. Nf5 {[%clk 0:00:26]}  Bd8 {[%clk 0:00:17]} 78. Nd4 {[%clk 0:00:26]}  Bc7 {[%clk 0:00:17]} 79. Nc6+ {[%clk 0:00:25]}  Kc5 {[%clk 0:00:18]} 80. Nxa5 {[%clk 0:00:26]}  Kd6 {[%clk 0:00:18]} 81. b4 {[%clk 0:00:26]}  Kd5 {[%clk 0:00:14]} 82. b5 {[%clk 0:00:26]}  Bd8 {[%clk 0:00:13]} 83. Nc6 {[%clk 0:00:23]}  Bc7 {[%clk 0:00:12]} 84. Kb7 {[%clk 0:00:22]}  Bh2 {[%clk 0:00:11]} 85. Ka6 {[%clk 0:00:20]}  Bg1 {[%clk 0:00:11]} 86. b6 {[%clk 0:00:19]}  Bxb6 {[%clk 0:00:09]} 87. Kxb6 {[%clk 0:00:20]}  Kd6 {[%clk 0:00:10]} 88. Bb3 {[%clk 0:00:19]}  Kd7 {[%clk 0:00:08]} 89. Kc5 {[%clk 0:00:18]}  Ke8 {[%clk 0:00:08]} 90. Kd6 {[%clk 0:00:17]}  Kf8 {[%clk 0:00:07]} 91. Ne5 {[%clk 0:00:15]}  Kg7 {[%clk 0:00:08]} 92. Ke6 {[%clk 0:00:15]}  Kh6 {[%clk 0:00:09]} 93. Kf5 {[%clk 0:00:14]}  Kh5 {[%clk 0:00:09]} 94. Ng6 {[%clk 0:00:13]}  Kh6 {[%clk 0:00:09]} 95. Kf6 {[%clk 0:00:13]}  Kh7 {[%clk 0:00:10]} 96. Bc4 {[%clk 0:00:13]}  Kh6 {[%clk 0:00:10]} 97. Bg8 {[%clk 0:00:13]}  Kh5 {[%clk 0:00:10]} 98. Ne5 {[%clk 0:00:13]}  Kh4 {[%clk 0:00:09]} 99. Kf5 {[%clk 0:00:11]}  Kg3 {[%clk 0:00:10]} 100. Ng4 {[%clk 0:00:10]}  Kf3 {[%clk 0:00:10]} 101. Bc4 {[%clk 0:00:09]}  Kg3 {[%clk 0:00:10]} 102. Be2 {[%clk 0:00:05]}  Kh4 {[%clk 0:00:09]} 103. Ne5 {[%clk 0:00:02]}  Kg3 {[%clk 0:00:09]} 104. Nd3 {[%clk 0:00:01]}  Kh4 {[%clk 0:00:09]} 105. Kf4 {[%clk 0:00:01]}  Kh3 {[%clk 0:00:10]} 106. Bf3 {[%clk 0:00:02]}  Kh4 {[%clk 0:00:10]} 1/2-1/2


[Site "https://www.chess.com"]

[Event "Titled Tuesday Blitz March 08 Early 2022"]
[White "Vusatiuk, Vladimir"]
[Black "Alavi, Sayed Javad"]
[WhiteFideId "14118610"]
[BlackFideId "12500607"]
[WhiteElo "2157"]
[BlackElo "2475"]
[Result "1-0"]
[Round "08"]
[TimeControl "180+1"]
[Date "2022.03.09"]
[WhiteClock "0:00:11"]
[BlackClock "0:00:20"]

1. d4 {[%clk 0:03:00]}  Nf6 {[%clk 0:02:59]} 2. c4 {[%clk 0:03:01]}  e6 {[%clk 0:02:59]} 3. Nc3 {[%clk 0:03:01]}  Bb4 {[%clk 0:02:59]} 4. e3 {[%clk 0:03:01]}  O-O {[%clk 0:02:57]} 5. Bd2 {[%clk 0:02:51]}  d5 {[%clk 0:02:54]} 6. Nf3 {[%clk 0:02:50]}  b6 {[%clk 0:02:46]} 7. cxd5 {[%clk 0:02:50]}  exd5 {[%clk 0:02:44]} 8. Bd3 {[%clk 0:02:51]}  Re8 {[%clk 0:02:37]} 9. Rc1 {[%clk 0:02:29]}  a6 {[%clk 0:02:21]} 10. Ne5 {[%clk 0:02:23]}  c5 {[%clk 0:02:04]} 11. O-O {[%clk 0:02:18]}  c4 {[%clk 0:02:04]} 12. Bb1 {[%clk 0:02:16]}  b5 {[%clk 0:01:58]} 13. f4 {[%clk 0:01:31]}  Bb7 {[%clk 0:01:29]} 14. g4 {[%clk 0:00:54]}  Nfd7 {[%clk 0:00:58]} 15. Qf3 {[%clk 0:00:28]}  Nc6 {[%clk 0:00:49]} 16. Bxh7+ {[%clk 0:00:14]}  Kxh7 {[%clk 0:00:47]} 17. Nxf7 {[%clk 0:00:14]}  Qe7 {[%clk 0:00:42]} 18. Ng5+ {[%clk 0:00:15]}  Kg8 {[%clk 0:00:20]} 19. Qxd5+ {[%clk 0:00:11]}  Kh8 {[%clk 0:00:20]} 20. Rf3 {[%clk 0:00:11]} 1-0


[Site "https://www.chess.com"]

[Event "Titled Tuesday Blitz March 08 Early 2022"]
[White "Winkels, Marcel"]
[Black "Sarkar, Justin"]
[WhiteFideId "1003887"]
[BlackFideId "2010011"]
[WhiteElo "1900"]
[BlackElo "2038"]
[Result "0-1"]
[Round "08"]
[TimeControl "180+1"]
[Date "2022.03.09"]
[WhiteClock "0:00:02"]
[BlackClock "0:00:05"]

1. e4 {[%clk 0:02:45]}  e5 {[%clk 0:02:53]} 2. Nf3 {[%clk 0:02:45]}  Nc6 {[%clk 0:02:51]} 3. Bc4 {[%clk 0:02:44]}  Bc5 {[%clk 0:02:43]} 4. b4 {[%clk 0:02:43]}  Bxb4 {[%clk 0:02:40]} 5. c3 {[%clk 0:02:44]}  Ba5 {[%clk 0:02:40]} 6. d4 {[%clk 0:02:43]}  exd4 {[%clk 0:02:38]} 7. O-O {[%clk 0:02:42]}  Nge7 {[%clk 0:02:35]} 8. cxd4 {[%clk 0:02:38]}  d5 {[%clk 0:02:12]} 9. exd5 {[%clk 0:02:32]}  Nxd5 {[%clk 0:02:11]} 10. Qb3 {[%clk 0:02:32]}  Nce7 {[%clk 0:01:43]} 11. Ne5 {[%clk 0:02:20]}  c6 {[%clk 0:01:16]} 12. Bd2 {[%clk 0:02:11]}  Bxd2 {[%clk 0:01:11]} 13. Nxd2 {[%clk 0:02:10]}  O-O {[%clk 0:01:10]} 14. Ndf3 {[%clk 0:02:09]}  Qb6 {[%clk 0:00:51]} 15. Qd3 {[%clk 0:02:02]}  Bf5 {[%clk 0:00:49]} 16. Qd2 {[%clk 0:01:54]}  f6 {[%clk 0:00:46]} 17. Nd3 {[%clk 0:01:51]}  Bxd3 {[%clk 0:00:39]} 18. Bxd3 {[%clk 0:01:48]}  Kh8 {[%clk 0:00:34]} 19. Rab1 {[%clk 0:01:47]}  Qc7 {[%clk 0:00:34]} 20. Bc2 {[%clk 0:01:46]}  Rad8 {[%clk 0:00:31]} 21. Rfe1 {[%clk 0:01:39]}  g6 {[%clk 0:00:28]} 22. Re3 {[%clk 0:01:28]}  Nc8 {[%clk 0:00:21]} 23. Re6 {[%clk 0:01:22]}  Nd6 {[%clk 0:00:17]} 24. Qh6 {[%clk 0:01:13]}  Qg7 {[%clk 0:00:15]} 25. Qxg7+ {[%clk 0:01:05]}  Kxg7 {[%clk 0:00:16]} 26. Rbe1 {[%clk 0:01:01]}  Rfe8 {[%clk 0:00:14]} 27. h4 {[%clk 0:00:56]}  Rxe6 {[%clk 0:00:12]} 28. Rxe6 {[%clk 0:00:55]}  Kf7 {[%clk 0:00:12]} 29. Re1 {[%clk 0:00:53]}  Re8 {[%clk 0:00:12]} 30. Rb1 {[%clk 0:00:52]}  Nc3 {[%clk 0:00:10]} 31. Rb2 {[%clk 0:00:43]}  b5 {[%clk 0:00:09]} 32. Bb3+ {[%clk 0:00:43]}  Kg7 {[%clk 0:00:09]} 33. Kf1 {[%clk 0:00:40]}  b4 {[%clk 0:00:08]} 34. g3 {[%clk 0:00:33]}  a5 {[%clk 0:00:08]} 35. Bc2 {[%clk 0:00:30]}  Nc4 {[%clk 0:00:07]} 36. Rb3 {[%clk 0:00:25]}  Rb8 {[%clk 0:00:07]} 37. Bd3 {[%clk 0:00:14]}  a4 {[%clk 0:00:06]} 38. Bxc4 {[%clk 0:00:10]}  axb3 {[%clk 0:00:06]} 39. Bxb3 {[%clk 0:00:10]}  Ra8 {[%clk 0:00:06]} 40. d5 {[%clk 0:00:08]}  cxd5 {[%clk 0:00:06]} 41. Nd4 {[%clk 0:00:07]}  Nxa2 {[%clk 0:00:05]} 42. Nc6 {[%clk 0:00:07]}  Nc3 {[%clk 0:00:04]} 43. Nxb4 {[%clk 0:00:06]}  Rb8 {[%clk 0:00:04]} 44. Nxd5 {[%clk 0:00:06]}  Rxb3 {[%clk 0:00:04]} 45. Ne3 {[%clk 0:00:04]}  Rb1+ {[%clk 0:00:04]} 46. Kg2 {[%clk 0:00:04]}  Ne4 {[%clk 0:00:04]} 47. Kf3 {[%clk 0:00:04]}  f5 {[%clk 0:00:04]} 48. g4 {[%clk 0:00:03]}  Rb2 {[%clk 0:00:05]} 49. gxf5 {[%clk 0:00:03]}  Rxf2+ {[%clk 0:00:05]} 50. Kxe4 {[%clk 0:00:03]}  gxf5+ {[%clk 0:00:05]} 51. Nxf5+ {[%clk 0:00:03]}  Kg6 {[%clk 0:00:05]} 52. Ng3 {[%clk 0:00:03]}  Ra2 {[%clk 0:00:05]} 53. h5+ {[%clk 0:00:02]}  Kg5 {[%clk 0:00:05]} 0-1


[Site "https://www.chess.com"]